bitfinex/quotes_ETHUSD_20240603
["timestamp","ask_amount","ask_price","bid_price","bid_amount"]
[1717409040249,1.36536391,3817.6,3817.5,6.42969088]
[1717409042072,2.18755836,3817.6,3817.5,6.42969088]
[1717409043173,3.06080609,3817.6,3817.5,6.42969088]
[1717409044088,4.1588455,3817.6,3817.5,6.42969088]
[1717409044294,4.1588455,3817.6,3817.5,7.07265997]
[1717409044596,4.1588455,3817.6,3817.5,9.37195997]
[1717409045186,4.15910818,3817.6,3817.5,9.37195997]
[1717409045361,3.06080609,3817.6,3817.5,9.37195997]
[1717409045880,3.06080609,3817.6,3817.5,11.99146997]
[1717409045881,1.36536391,3817.6,3817.5,11.99146997]
[1717409047232,2.18884013,3817.6,3817.5,11.99146997]
[1717409047376,1.36518819,3817.6,3817.5,11.99146997]
[1717409048696,1.36517563,3817.6,3817.5,11.99146997]
[1717409049960,1.91446366,3817.6,3817.5,14.61097997]
[1717409050166,0.54928803,3817.8,3817.5,12.86167997]
[1717409050372,0.54928803,3817.9,3817.7,8.40484]
[1717409050771,0.54928803,3817.9,3817.8,3.57771614]
[1717409050975,1.91438169,3817.9,3817.8,3.57771614]
[1717409051180,1.91438169,3817.9,3817.8,7.90473646]
[1717409051401,1.36509366,3817.9,3817.8,7.90473646]
[1717409051977,1.69e-06,3818.0,3817.9,7.85772]
[1717409052176,1.09830209,3818.4,3817.9,6.95024]
[1717409052177,0.82365194,3818.4,3817.9,6.95024]
[1717409052378,4.04752855,3819.1,3817.9,6.95024]
[1717409052379,1.36498377,3818.3,3818.1,5.2382]
[1717409052615,1.37327379,3818.9,3818.3,5.2379]
[1717409052616,0.82365194,3818.6,3818.3,5.2379]
[1717409052906,1.36496215,3818.5,3818.4,3.02723675]
[1717409053213,1.36496215,3818.5,3818.4,6.29453675]
[1717409053577,1.36496215,3818.5,3818.4,3.80823675]
[1717409053778,1.36496215,3818.5,3818.4,5.10582988]
[1717409054687,1.37327379,3819.0,3818.5,5.23763]
[1717409054688,0.82365194,3818.8,3818.5,5.23763]
[1717409054895,1.36494356,3818.7,3818.6,4.35813565]
[1717409055284,0.82365194,3819.0,3818.7,2.61867]
[1717409055480,1.36486103,3818.9,3818.8,3.781]
[1717409055679,1.36486103,3818.9,3818.8,4.80572913]
[1717409056415,1.36486103,3818.9,3818.8,7.42434913]
[1717409057382,1.36486103,3818.9,3818.8,6.42665456]
[1717409059191,3.18785194,3819.0,3818.8,6.42665456]
[1717409059392,1.36494084,3818.9,3818.8,6.42665456]
[1717409061793,1.36490507,3818.9,3818.8,6.42665456]
[1717409062686,2.91180782,3819.0,3818.8,6.42665456]
[1717409062887,1.36490796,3818.9,3818.8,6.42665456]
[1717409064088,0.54760782,3819.0,3818.8,6.42665456]
[1717409064283,0.54760782,3819.1,3819.0,2.61848]
[1717409064523,1.91248974,3819.1,3819.0,3.42631729]
[1717409070628,0.54760782,3819.3,3819.0,7.84894902]
[1717409070924,0.54760782,3819.4,3819.2,3.39934]
[1717409071107,1.36475244,3819.3,3819.2,2.61834]
[1717409071306,0.54760782,3819.4,3819.2,3.39934]
[1717409071516,0.54760782,3819.5,3819.2,3.39934]
[1717409071720,0.54760782,3819.7,3819.5,0.781]
[1717409072038,0.54760782,3819.8,3819.5,3.39914]
[1717409072337,0.54760782,3819.8,3819.3,3.0]
[1717409072338,0.54760782,3819.8,3819.7,2.618]
[1717409072640,1.36461438,3819.8,3819.7,6.399]
[1717409075341,0.54760782,3819.9,3819.7,6.399]
[1717409076200,2.2639,3820.0,3819.7,6.399]
[1717409076201,1.91222446,3819.8,3819.7,6.399]
[1717409079523,0.54760782,3819.8,3819.7,6.399]
[1717409079704,1.91229522,3819.8,3819.7,6.399]
[1717409080223,1.91229522,3819.8,3819.7,5.618]
[1717409081245,0.54760782,3819.8,3819.7,5.618]
[1717409081727,0.82365194,3819.9,3819.7,5.618]
[1717409081895,0.82365194,3819.9,3819.8,0.02624305]
[1717409082093,0.82365194,3819.9,3819.7,5.618]
[1717409082297,2.3149,3819.8,3819.4,2.61821]
[1717409082497,2.3149,3819.8,3819.1,13.6794]
[1717409082697,2.3149,3819.8,3819.2,3.0]
[1717409082928,2.5769,3819.8,3819.2,3.0]
[1717409083718,2.5769,3819.8,3819.1,9.8984]
[1717409083914,2.2837,3819.5,3819.1,9.8984]
[1717409087540,2.2837,3819.5,3819.1,2.6184]
[1717409093657,4.77216312,3819.4,3819.1,2.6184]
[1717409093970,2.97723268,3819.3,3819.1,2.6184]
[1717409094141,2.97723268,3819.2,3819.1,2.6184]
[1717409094350,2.97723268,3819.2,3819.1,5.6184]
[1717409095366,2.97723268,3819.2,3818.7,2.61864]
[1717409095527,1.37183819,3819.0,3818.8,3.0]
[1717409095730,4.34907087,3818.9,3818.8,3.0]
[1717409096377,2.97730123,3818.9,3818.8,3.0]
[1717409097074,2.97730123,3818.9,3818.8,3.02673426]
[1717409103483,2.97730123,3818.9,3818.8,0.02673426]
[1717409103847,2.97730123,3818.9,3818.5,0.781]
[1717409104072,3.92150586,3819.1,3818.8,0.0268844]
[1717409104237,3.92150586,3819.1,3818.5,0.781]
[1717409104238,4.77389515,3819.0,3818.5,0.781]
[1717409104438,3.92136347,3819.1,3818.9,0.02686671]
[1717409104781,3.92136347,3819.1,3818.4,3.0]
[1717409104782,4.77364972,3819.0,3818.4,3.781]
[1717409105064,1.09739762,3818.5,3818.4,3.781]
[1717409105272,4.07539864,3818.5,3818.4,3.781]
[1717409106255,2.97800102,3818.5,3818.4,3.781]
[1717409106482,2.97800102,3818.5,3818.4,5.148994]
[1717409106775,2.18803701,3818.5,3818.4,5.148994]
[1717409107163,2.97777148,3818.5,3818.4,5.148994]
[1717409108180,2.97776725,3818.5,3818.4,5.148994]
[1717409108853,2.97776322,3818.5,3818.4,5.148994]
[1717409109054,2.97776322,3818.5,3818.4,3.0]
[1717409109263,2.97776322,3818.5,3818.4,3.781]
[1717409110148,2.97778666,3818.5,3818.4,3.781]
[1717409111982,2.97778666,3818.5,3818.4,3.80811475]
[1717409112157,1.36512819,3818.5,3818.4,3.80811475]
[1717409112492,2.97735892,3818.5,3818.4,3.80811475]
[1717409112689,2.97730603,3818.5,3818.4,3.80811475]
[1717409112840,2.97730603,3818.5,3818.4,4.45082022]
[1717409114091,1.61217784,3818.5,3818.4,4.45082022]
[1717409114252,2.97730357,3818.5,3818.4,4.45082022]
[1717409115491,2.97730357,3818.5,3818.4,3.80811475]
[1717409115794,2.18772123,3818.5,3818.4,3.80811475]
[1717409115968,2.97711199,3818.5,3818.4,3.80811475]
[1717409116297,2.97711199,3818.5,3818.4,3.02711475]
[1717409116657,2.97711199,3818.5,3818.4,0.02711475]
[1717409116999,3.80581458,3818.5,3818.4,0.02711475]
[1717409117205,3.80581458,3818.5,3818.3,2.61894]
[1717409117206,5.94421784,3818.5,3818.3,2.61894]
[1717409117348,4.34809529,3818.4,3818.3,2.61894]
[1717409117552,4.34809529,3818.4,3818.3,2.64609121]
[1717409118098,4.34809529,3818.4,3818.3,3.02715121]
[1717409118453,4.34809529,3818.4,3818.3,0.02715121]
[1717409118649,4.91418764,3818.4,3818.3,0.02715121]
[1717409118888,5.11553636,3818.4,3818.0,3.0]
[1717409119053,1.57233202,3818.4,3818.3,0.02721222]
[1717409119251,3.54357212,3818.4,3818.0,3.0]
[1717409119496,1.09680631,3818.1,3818.0,3.0]
[1717409119680,2.97746276,3818.1,3818.0,3.781]
[1717409120496,4.07426907,3818.1,3818.0,3.781]
[1717409122220,4.07424173,3818.1,3818.0,3.781]
[1717409123463,2.97743542,3818.1,3818.0,3.781]
[1717409123961,1.61216663,3818.1,3818.0,3.781]
[1717409124128,2.97743199,3818.1,3818.0,3.781]
[1717409125324,4.34980635,3818.1,3818.0,3.781]
[1717409126840,4.34980635,3818.1,3818.0,3.80847651]
[1717409127042,2.97743157,3818.1,3818.0,3.80847651]
[1717409127834,4.34980635,3818.1,3818.0,3.80847651]
[1717409128035,2.97743157,3818.1,3818.0,3.80847651]
[1717409128335,4.34980635,3818.1,3818.0,3.80847651]
[1717409128716,2.97743157,3818.1,3818.0,3.80847651]
[1717409129164,2.97742661,3818.1,3818.0,3.80847651]
[1717409130180,4.3500282,3818.1,3818.0,3.02747651]
[1717409130471,4.34998087,3818.1,3818.0,3.80847651]
[1717409131730,4.34998087,3818.1,3818.0,3.85773045]
[1717409132369,5.43774024,3818.1,3818.0,3.85773045]
[1717409133932,5.43778031,3818.1,3818.0,3.85773045]
[1717409134279,6.81023718,3818.1,3818.0,3.85773045]
[1717409134493,5.43778031,3818.1,3818.0,3.85773045]
[1717409135434,2.97748031,3818.1,3818.0,3.85773045]
[1717409137167,4.35001064,3818.1,3818.0,3.85773045]
[1717409138541,4.35001064,3818.1,3818.0,6.26333045]
[1717409138741,4.35001064,3818.1,3818.0,7.1515805]
[1717409138742,4.07550799,3818.1,3818.0,7.1515805]
[1717409139268,2.97748031,3818.1,3818.0,7.1515805]
[1717409144233,4.35001064,3818.1,3818.0,7.1515805]
[1717409144571,4.35001064,3818.1,3818.0,4.7459805]
[1717409144775,2.97748031,3818.1,3818.0,4.7459805]
[1717409145133,4.35001064,3818.1,3818.0,4.7459805]
[1717409146088,1.61216663,3818.1,3818.0,4.7459805]
[1717409146235,4.35064749,3818.1,3818.0,4.7459805]
[1717409147031,4.35067,3818.1,3818.0,4.7459805]
[1717409148762,1.61216663,3818.1,3818.0,4.7459805]
[1717409148948,4.35084992,3818.1,3818.0,4.7459805]
[1717409151273,4.35084992,3818.1,3818.0,3.85773045]
[1717409152276,1.61216663,3818.1,3818.0,3.85773045]
[1717409152482,4.3510878,3818.1,3818.0,3.85773045]
[1717409153374,2.97738606,3818.1,3818.0,3.85773045]
[1717409154176,2.97739007,3818.1,3818.0,3.85773045]
[1717409154346,2.97739007,3818.1,3818.0,4.7439305]
[1717409154775,4.35128882,3818.1,3818.0,4.7439305]
[1717409155689,2.97739007,3818.1,3818.0,4.7439305]
[1717409159354,2.97739007,3818.1,3818.0,3.85773045]
[1717409160193,2.97737003,3818.1,3818.0,3.85773045]
[1717409164931,2.9773727,3818.1,3818.0,3.85773045]
[1717409165428,2.9773727,3818.1,3818.0,3.07673045]
[1717409165730,8.78995083,3818.1,3818.0,3.85773045]
[1717409168427,6.52285083,3818.1,3818.0,3.85773045]
[1717409168630,4.87279318,3818.1,3818.0,3.85773045]
[1717409169903,4.87279318,3818.1,3818.0,3.07673045]
[1717409170130,6.52285083,3818.1,3818.0,3.85773045]
[1717409170535,4.87279318,3818.1,3818.0,3.85773045]
[1717409170834,6.52285083,3818.1,3818.0,3.85773045]
[1717409171703,6.52298328,3818.1,3818.0,3.85773045]
[1717409179691,6.52301199,3818.1,3818.0,3.85773045]
[1717409180791,2.97744932,3818.1,3818.0,6.9016205]
[1717409180969,4.35245139,3818.1,3818.0,6.9016205]
[1717409181288,2.1899313,3818.1,3818.0,6.9016205]
[1717409182184,2.1899313,3818.1,3818.0,9.5207905]
[1717409182392,1.36528269,3818.1,3818.0,9.5207905]
[1717409182552,1.91492159,3818.1,3818.0,9.5207905]
[1717409183004,1.91492159,3818.1,3818.0,12.1399605]
[1717409183168,0.82464861,3818.3,3818.0,12.6899605]
[1717409183169,0.5496389,3818.3,3818.0,12.6899605]
[1717409183372,1.36487686,3818.2,3818.1,6.14917605]
[1717409183556,1.36487686,3818.2,3818.1,9.93017605]
[1717409183897,1.36487686,3818.2,3818.1,10.0067444]
[1717409184106,1.36487686,3818.2,3818.1,12.6258444]
[1717409184273,0.5496389,3818.3,3818.1,13.1758444]
[1717409184459,0.5496389,3818.5,3818.3,7.63252]
[1717409184658,0.5496389,3818.5,3818.4,0.85741281]
[1717409184885,1.9144429,3818.5,3818.4,3.85741281]
[1717409185051,1.9144429,3818.5,3818.4,5.70557254]
[1717409185251,1.364804,3818.5,3818.4,5.70557254]
[1717409186181,0.5496389,3818.6,3818.4,5.70557254]
[1717409186182,0.5496389,3818.6,3818.5,2.61882]
[1717409188277,1.36479992,3818.6,3818.5,8.10961489]
[1717409188460,1.91352574,3818.6,3818.5,8.10961489]
[1717409189160,1.91347406,3818.6,3818.5,8.10961489]
[1717409189398,1.36479992,3818.6,3818.5,5.6948572]
[1717409189704,1.36479992,3818.6,3818.5,6.4758572]
[1717409190813,2.18944853,3818.6,3818.5,6.4758572]
[1717409191299,1.36479992,3818.6,3818.5,6.4758572]
[1717409196080,1.91338795,3818.6,3818.5,7.36296292]
[1717409197015,1.91338795,3818.6,3818.5,6.58196292]
[1717409197523,1.91338795,3818.6,3818.5,6.4758572]
[1717409197816,1.36488306,3818.6,3818.5,6.4758572]
[1717409198705,1.36492935,3818.6,3818.5,6.4758572]
[1717409200274,1.9133087,3818.6,3818.5,6.4758572]
[1717409200670,1.3649117,3818.6,3818.5,6.4758572]
[1717409201743,1.91329764,3818.6,3818.5,6.4758572]
[1717409204737,1.91329764,3818.6,3818.5,5.6948572]
[1717409204912,1.91329764,3818.6,3818.5,6.4758572]
[1717409206635,1.91326329,3818.6,3818.5,6.4758572]
[1717409207207,4.59345448,3818.6,3818.5,5.6948572]
[1717409207315,4.86971715,3818.6,3818.5,0.0760372]
[1717409207665,4.04506854,3818.6,3818.5,0.0760372]
[1717409207810,9.74418516,3818.6,3818.2,0.781]
[1717409208014,1.37128634,3818.3,3817.7,2.61935]
[1717409208258,1.37128634,3818.4,3818.2,0.781]
[1717409208545,3.10687543,3818.3,3817.7,2.61935]
[1717409208749,0.82276048,3818.0,3817.8,3.0]
[1717409208937,1.36523562,3817.9,3817.8,3.0]
[1717409209122,1.36523562,3817.9,3817.8,3.781]
[1717409209727,1.36523562,3817.9,3817.8,3.0]
[1717409209958,1.36523562,3817.9,3817.8,3.781]
[1717409213332,2.1879961,3817.9,3817.8,3.781]
[1717409213536,2.1879961,3817.9,3817.8,3.0]
[1717409213738,2.1879961,3817.9,3817.8,3.781]
[1717409214176,3.10483135,3817.9,3817.8,3.781]
[1717409215160,2.18800423,3817.9,3817.8,3.781]
[1717409215780,3.10476877,3817.9,3817.8,3.781]
[1717409216162,2.18798857,3817.9,3817.8,3.781]
[1717409216956,2.18798857,3817.9,3817.8,3.84784477]
[1717409218149,3.10473132,3817.9,3817.8,3.84784477]
[1717409218353,2.18796084,3817.9,3817.8,3.84784477]
[1717409220392,2.18796084,3817.9,3817.8,3.06684477]
[1717409220593,3.10472767,3817.9,3817.8,3.84784477]
[1717409226062,2.18784346,3817.9,3817.8,3.84784477]
[1717409226564,1.36523562,3817.9,3817.8,3.84784477]
[1717409226764,3.10456444,3817.9,3817.8,3.84784477]
[1717409227302,2.18783236,3817.9,3817.8,3.84784477]
[1717409227973,2.18783236,3817.9,3817.8,6.97376425]
[1717409228175,1.91360848,3817.9,3817.8,6.97376425]
[1717409230074,1.91354924,3817.9,3817.8,6.97376425]
[1717409233382,1.36517638,3817.9,3817.8,6.97376425]
[1717409235853,1.36517638,3817.9,3817.8,6.92546425]
[1717409237136,0.82259674,3818.0,3817.9,2.61924]
[1717409237317,2.18777507,3818.0,3817.9,7.35471043]
[1717409237659,2.18777507,3818.0,3817.9,7.42170223]
[1717409241758,3.10339048,3818.0,3817.9,7.42170223]
[1717409242076,2.18826916,3818.0,3817.9,7.42170223]
[1717409242251,3.10343454,3818.0,3817.9,7.42170223]
[1717409242979,2.18834458,3818.0,3817.9,7.42170223]
[1717409243175,3.10360732,3818.0,3817.9,7.42170223]
[1717409246164,4.20062129,3818.0,3817.9,7.42170223]
[1717409249070,3.10360732,3818.0,3817.9,7.42170223]
[1717409249657,4.2021831,3818.0,3817.9,7.42170223]
[1717409250414,3.10360962,3818.0,3817.9,7.42170223]
[1717409250818,4.01373857,3818.0,3817.9,7.42170223]
[1717409250980,5.11257301,3818.0,3817.9,6.64070223]
[1717409251186,5.11257301,3818.0,3817.9,9.73680223]
[1717409253408,4.01373857,3818.0,3817.9,9.73680223]
[1717409254520,5.11334943,3818.0,3817.9,9.73680223]
[1717409264915,5.11334943,3818.0,3817.9,6.64070223]
[1717409265171,5.11334943,3818.0,3817.9,7.42170223]
[1717409265172,4.01373857,3818.0,3817.9,7.42170223]
[1717409271050,4.01373857,3818.0,3817.9,6.4672318]
[1717409271745,5.38726906,3818.0,3817.9,6.4672318]
[1717409273378,7.80626906,3818.0,3817.9,6.4672318]
[1717409273746,6.43273857,3818.0,3817.9,6.4672318]
[1717409274071,7.80764903,3818.0,3817.9,6.4672318]
[1717409274767,6.43273857,3818.0,3817.9,6.46547456]
[1717409275163,7.80768361,3818.0,3817.9,6.46547456]
[1717409275856,6.43273857,3818.0,3817.9,6.46547456]
[1717409277154,7.80767266,3818.0,3817.9,6.46547456]
[1717409277355,5.38867266,3818.0,3817.9,6.46547456]
[1717409277553,4.01373857,3818.0,3817.9,6.46547456]
[1717409277754,5.38867702,3818.0,3817.9,6.46547456]
[1717409277952,5.3886701,3818.0,3817.9,6.46547456]
[1717409278476,4.01373857,3818.0,3817.9,6.46547456]
[1717409278649,5.38868252,3818.0,3817.9,6.46547456]
[1717409280387,5.38868252,3818.0,3817.9,7.11202202]
[1717409285899,4.01373857,3818.0,3817.9,7.11202202]
[1717409286666,4.01373857,3818.0,3817.9,9.73126202]
[1717409288295,4.01373857,3818.0,3817.9,12.16416202]
[1717409288296,5.11372081,3818.0,3817.9,12.16416202]
[1717409293628,5.11359688,3818.0,3817.9,12.16416202]
[1717409300899,5.11359688,3818.0,3817.9,12.71416202]
[1717409302597,2.27518565,3818.0,3817.9,12.71416202]
[1717409304686,2.82491944,3818.0,3817.9,12.71416202]
[1717409305980,2.82465674,3818.0,3817.9,12.71416202]
[1717409309717,2.27492295,3818.0,3817.9,11.93316202]
[1717409310177,2.27492295,3818.0,3817.9,12.71516202]
[1717409311593,2.82465674,3818.0,3817.9,12.71516202]
[1717409312333,2.27492295,3818.0,3817.9,12.71516202]
[1717409312836,2.82465674,3818.0,3817.9,12.71516202]
[1717409313241,2.82465674,3818.0,3817.9,11.93316202]
[1717409313448,2.82465674,3818.0,3817.9,12.71516202]
[1717409313743,2.27492295,3818.0,3817.9,12.71516202]
[1717409317744,0.90996918,3818.0,3817.9,12.71516202]
[1717409318131,2.27492728,3818.0,3817.9,12.71516202]
[1717409318759,0.90996918,3818.0,3817.9,12.71516202]
[1717409319635,2.27492805,3818.0,3817.9,12.71516202]
[1717409320658,0.90996918,3818.0,3817.9,12.71516202]
[1717409322121,2.2749081,3818.0,3817.9,12.71516202]
[1717409322662,2.2749081,3818.0,3817.9,10.28226202]
[1717409325165,2.2749081,3818.0,3817.9,9.73226202]
[1717409325470,2.2749081,3818.0,3817.9,9.08571456]
[1717409325695,3.09968697,3818.0,3817.9,9.08571456]
[1717409326460,0.82477887,3818.0,3817.9,9.08571456]
[1717409326694,3.09989245,3818.0,3817.9,9.08571456]
[1717409327053,2.27511358,3818.0,3817.9,9.08571456]
[1717409327591,3.09989245,3818.0,3817.9,9.08571456]
[1717409327782,3.09989245,3818.0,3817.9,11.64125703]
[1717409329258,3.09989245,3818.0,3817.9,5.68447456]
[1717409329660,3.09989245,3818.0,3817.9,6.46647456]
[1717409329862,4.09528264,3818.0,3817.9,6.46647456]
[1717409330508,7.61366488,3818.0,3817.9,6.46647456]
[1717409333676,6.51368264,3818.0,3817.9,6.46647456]
[1717409334404,7.61305456,3818.0,3817.9,6.46647456]
[1717409334579,6.51368264,3818.0,3817.9,6.46647456]
[1717409334774,7.61305602,3818.0,3817.9,6.46647456]
[1717409337117,6.51368264,3818.0,3817.9,6.46647456]
[1717409337910,4.09528264,3818.0,3817.9,6.46647456]
[1717409338729,3.09955112,3818.0,3817.9,6.46647456]
[1717409340684,3.09955112,3818.0,3817.9,11.27454313]
[1717409340824,2.27511358,3818.0,3817.9,11.82454313]
[1717409340994,0.82443754,3818.1,3817.9,11.82454313]
[1717409341325,0.54955368,3818.2,3818.1,5.2382]
[1717409341496,2.82437046,3818.2,3818.1,8.05712031]
[1717409341840,2.82437046,3818.2,3818.1,11.11819458]
[1717409342037,2.34427046,3818.2,3818.1,11.11819458]
[1717409343092,2.14405546,3818.2,3818.1,11.11819458]
[1717409343337,0.90992671,3818.2,3818.1,11.11819458]
[1717409344622,0.82443754,3818.6,3818.1,11.11819458]
[1717409344623,0.82443754,3818.6,3818.5,2.61882]
[1717409344929,1.73430563,3818.6,3818.5,6.46152543]
[1717409345132,0.90986809,3818.6,3818.5,6.46152543]
[1717409345636,1.73430563,3818.6,3818.5,6.46152543]
[1717409346132,1.73430563,3818.6,3818.5,7.39322778]
[1717409346633,0.90986809,3818.6,3818.5,7.39322778]
[1717409347711,1.73430563,3818.6,3818.5,7.39322778]
[1717409348331,0.9098892,3818.6,3818.5,7.39322778]
[1717409348647,1.73432674,3818.6,3818.5,7.39322778]
[1717409348860,0.9098892,3818.6,3818.5,7.39322778]
[1717409350345,0.9098892,3818.6,3818.5,10.01204778]
[1717409351818,0.9098892,3818.6,3818.5,9.23004778]
[1717409352152,0.9098892,3818.6,3818.5,10.01204778]
[1717409353140,2.82375164,3818.6,3818.5,10.01204778]
[1717409354622,1.91386988,3818.6,3818.5,9.08034543]
[1717409354820,2.82375557,3818.6,3818.5,9.08034543]
[1717409355023,2.27471423,3818.6,3818.5,9.08034543]
[1717409355779,2.82369808,3818.6,3818.5,9.08034543]
[1717409361237,2.82369808,3818.6,3818.5,5.67952543]
[1717409361439,2.82369808,3818.6,3818.5,6.46152543]
[1717409361673,3.09915177,3818.6,3818.5,6.46152543]
[1717409363604,4.09462581,3818.6,3818.5,6.46152543]
[1717409366172,3.09808282,3818.6,3818.5,6.46152543]
[1717409368209,4.09461997,3818.6,3818.5,6.46152543]
[1717409368413,2.27471423,3818.6,3818.5,6.46152543]
[1717409368712,3.09808439,3818.6,3818.5,6.46152543]
[1717409370780,3.09808439,3818.6,3818.5,5.67952543]
[1717409370998,3.09808439,3818.6,3818.5,6.46152543]
[1717409372333,4.0947871,3818.6,3818.5,6.46152543]
[1717409372690,4.09478799,3818.6,3818.5,6.46152543]
[1717409374829,1.81990627,3818.6,3818.5,6.46152543]
[1717409375032,4.09480152,3818.6,3818.5,6.46152543]
[1717409379121,5.1941749,3818.6,3818.5,6.46152543]
[1717409382234,5.1941749,3818.6,3818.5,7.10767797]
[1717409383253,4.09480152,3818.6,3818.5,7.10767797]
[1717409385082,4.09480152,3818.6,3818.5,5.67952543]
[1717409385246,5.4672688,3818.6,3818.5,6.46152543]
[1717409387073,7.8495688,3818.6,3818.5,6.46152543]
[1717409387368,6.47710152,3818.6,3818.5,6.46152543]
[1717409387967,4.20220627,3818.6,3818.5,6.46152543]
[1717409388156,6.4772194,3818.6,3818.5,6.46152543]
[1717409390060,6.47730557,3818.6,3818.5,5.67952543]
[1717409390277,6.47730557,3818.6,3818.5,6.46152543]
[1717409393952,7.28995087,3818.6,3818.5,5.67952543]
[1717409394154,9.48787826,3818.6,3818.5,3.84270543]
[1717409394357,11.13702565,3818.6,3818.5,0.06070543]
[1717409394693,9.48787826,3818.6,3818.5,0.782]
[1717409394986,10.05393788,3818.6,3818.5,0.83869231]
[1717409395377,11.13658451,3818.6,3818.5,0.83869231]
[1717409402295,10.31585506,3818.6,3818.5,0.05669231]
[1717409402497,11.88831088,3818.6,3818.5,0.05669231]
[1717409402707,2.409,3818.5,3817.7,2.61936]
[1717409402853,1.64819718,3818.2,3817.9,0.782]
[1717409403049,6.17863229,3818.1,3817.9,0.782]
[1717409403255,6.5045049,3818.0,3817.7,2.61936]
[1717409403493,1.37313513,3817.8,3817.7,2.61936]
[1717409403683,5.46864003,3817.8,3817.7,3.40136]
[1717409404200,5.4686645,3817.8,3817.7,6.40136]
[1717409404499,4.09550067,3817.8,3817.7,6.40136]
[1717409406401,5.19338876,3817.8,3817.7,6.40136]
[1717409407083,4.09550067,3817.8,3817.7,6.40136]
[1717409408210,5.19306392,3817.8,3817.7,6.40136]
[1717409408582,4.09550067,3817.8,3817.7,6.40136]
[1717409409109,5.19304952,3817.8,3817.7,6.40136]
[1717409409511,7.54154952,3817.8,3817.7,6.40136]
[1717409411483,7.54154952,3817.8,3817.7,5.61936]
[1717409411687,7.54154952,3817.8,3817.7,6.40136]
[1717409411910,7.54154952,3817.8,3817.7,6.45511198]
[1717409414386,6.33952808,3817.7,3817.6,0.83594194]
[1717409415287,4.96636425,3817.7,3817.6,0.83594194]
[1717409417385,4.96636425,3817.7,3817.6,0.05394194]
[1717409417585,6.33952808,3817.7,3817.6,0.782]
[1717409417785,6.33952808,3817.7,3817.6,0.83426194]
[1717409418211,4.96636425,3817.7,3817.6,0.05226194]
[1717409418408,4.96636425,3817.7,3817.5,0.782]
[1717409418625,7.13825348,3817.6,3817.4,2.61957]
[1717409418927,5.19181602,3817.5,3817.4,2.61957]
[1717409419224,4.09550067,3817.5,3817.4,2.61957]
[1717409419425,4.09550067,3817.5,3817.4,3.40157]
[1717409419628,7.31977394,3817.5,3817.4,2.61957]
[1717409420239,7.31977394,3817.5,3817.3,0.7973894]
[1717409420440,3.09767626,3817.4,3817.3,0.7973894]
[1717409422037,3.09767626,3817.4,3817.3,0.0153894]
[1717409422238,3.09767626,3817.4,3817.3,0.7973894]
[1717409422998,3.35957626,3817.4,3817.3,0.7973894]
[1717409423203,3.3594528,3817.4,3817.3,0.7973894]
[1717409423633,3.3594528,3817.4,3817.3,0.0153894]
[1717409423939,3.3594528,3817.4,3817.3,0.7973894]
[1717409424141,3.3594528,3817.4,3817.3,0.85007144]
[1717409424844,4.35828414,3817.4,3817.3,0.85007144]
[1717409425853,4.09638414,3817.4,3817.3,0.85007144]
[1717409426211,3.09751348,3817.4,3817.3,0.85007144]
[1717409426611,3.09751348,3817.4,3817.3,0.06807144]
[1717409426866,3.09751348,3817.4,3817.3,0.7973894]
[1717409427367,4.09636171,3817.4,3817.3,0.85007144]
[1717409427713,4.35826171,3817.4,3817.3,0.0153894]
[1717409427937,4.35826171,3817.4,3817.3,0.7973894]
[1717409428157,5.45457706,3817.4,3817.3,0.85007144]
[1717409429045,5.45457706,3817.4,3817.3,0.7973894]
[1717409432243,4.35826171,3817.4,3817.3,0.7973894]
[1717409432688,4.35826171,3817.4,3817.3,0.87704636]
[1717409432860,4.35826171,3817.4,3817.3,0.7973894]
[1717409435765,4.35826171,3817.4,3817.3,0.87707446]
[1717409436407,4.35826171,3817.4,3817.3,0.7973894]
[1717409437109,5.73142554,3817.4,3817.3,0.7973894]
[1717409437406,4.82118778,3817.4,3817.3,0.7973894]
[1717409440114,4.82118778,3817.4,3817.3,0.0153894]
[1717409440301,4.82118778,3817.4,3817.3,0.7973894]
[1717409440700,3.44802395,3817.4,3817.3,0.7973894]
[1717409440920,3.44802395,3817.4,3817.3,0.87716108]
[1717409441125,3.44802395,3817.4,3817.3,0.7973894]
[1717409441403,4.92471713,3817.4,3817.3,0.87716108]
[1717409441627,4.92471713,3817.4,3817.3,0.7973894]
[1717409443107,6.49747755,3817.4,3817.3,0.7973894]
[1717409443845,6.49747755,3817.4,3817.3,0.0153894]
[1717409444139,6.49747755,3817.4,3817.3,0.7973894]
[1717409444508,8.46536396,3817.4,3817.3,0.7973894]
[1717409445402,9.70303002,3817.4,3817.3,0.7973894]
[1717409445627,9.77806619,3817.4,3817.3,0.87715875]
[1717409446308,9.77806619,3817.4,3817.3,0.09515875]
[1717409446714,8.1302696,3817.4,3817.3,0.09515875]
[1717409447146,9.77742279,3817.4,3817.3,0.09515875]
[1717409447347,9.77742279,3817.4,3817.3,0.0153894]
[1717409447739,8.1302696,3817.4,3817.3,0.0153894]
[1717409448333,8.1302696,3817.4,3817.3,0.09515641]
[1717409448653,8.1302696,3817.4,3817.3,0.0153894]
[1717409454632,8.13064136,3817.4,3817.3,0.0153894]
[1717409456428,8.13064209,3817.4,3817.3,0.0153894]
[1717409461058,8.13064209,3817.4,3817.3,0.09518215]
[1717409462674,7.56436963,3817.4,3817.3,0.09518215]
[1717409462878,8.13064141,3817.4,3817.3,0.09518215]
[1717409463432,10.05409421,3817.4,3817.3,0.09518215]
[1717409463629,10.05409421,3817.4,3817.3,0.87718215]
[1717409463835,8.13064141,3817.4,3817.3,0.87718215]
[1717409464275,10.05409421,3817.4,3817.3,0.0153894]
[1717409464481,8.81642815,3817.4,3817.3,0.0153894]
[1717409464646,6.63107535,3817.4,3817.3,2.3835894]
[1717409464845,8.20397912,3817.4,3817.3,2.46335875]
[1717409465046,8.28059593,3817.4,3817.3,2.46335875]
[1717409465261,8.28059593,3817.4,3817.3,3.04985962]
[1717409465262,4.09691716,3817.4,3817.3,3.04985962]
[1717409465577,5.47122728,3817.4,3817.3,3.04985962]
[1717409466039,5.47122728,3817.4,3817.3,6.04985962]
[1717409466384,4.09691716,3817.4,3817.3,6.04985962]
[1717409466578,2.19008868,3817.4,3817.3,6.04985962]
[1717409466769,1.36568991,3817.4,3817.3,6.04985962]
[1717409466964,0.82439877,3817.5,3817.4,2.61958]
[1717409467166,3.0850838,3817.5,3817.4,9.65472396]
[1717409467356,2.18941246,3817.5,3817.4,9.73444073]
[1717409467944,3.08459487,3817.5,3817.4,9.73444073]
[1717409468145,4.18404193,3817.5,3817.4,9.73444073]
[1717409468443,3.08459487,3817.5,3817.4,9.73444073]
[1717409471395,2.18898154,3817.5,3817.4,9.73444073]
[1717409475711,1.36526502,3817.5,3817.4,9.73444073]
[1717409480631,1.91397619,3817.5,3817.4,8.95244073]
[1717409480833,1.91397619,3817.5,3817.4,9.73444073]